Cogmind - Beta 10.2 @@@ ROGUE MODE // 2021.11.18 @ 22:22:08 // Winter2019/RPGLIKE Player: Storm Mk9 Result: Destroyed by G-47 Trooper with Particle Gun Performance ------------- Evolutions (2) 1000 Regions Visited (5) 1000 Robots Destroyed (27) 135 Value Destroyed (518) 518 Prototype IDs (25) 500 Alien Tech Used (0) 0 Bonus (300) 300 TOTAL SCORE: 3453 Bonus ------- Aligned with FarCom 300 Cogmind --------- Core Integrity 0/1150 Matter 300/300 Energy 315/315 System Corruption 0% Temperature Cool (9) Movement Flying (34) Location -8/Materials Parts ------- > --- POWER (3) -------- Light Ion Engine Light Ion Engine Improved Ion Engine > --- PROPULSION (5) --- Flight Unit Flight Unit Flight Unit > --- UTILITY (2) ------ Targeting Computer Trap Reconfigurator > --- WEAPON (1) ------- Mining Laser > --- INVENTORY (0) ---- (None) Peak State ------------ > --- POWER ------------ Light Ion Engine Light Ion Engine Improved Ion Engine > --- PROPULSION ------- Flight Unit Flight Unit Flight Unit Flight Unit > --- UTILITY ---------- Targeting Computer Trap Reconfigurator > --- WEAPON ----------- Plasma Cutter > --- INVENTORY -------- (None) [Rating: 20] Favorites ----------- Power Light Ion Engine Engine Light Ion Engine Power Core Light Nuclear Core Propulsion Flight Unit Flight Unit Flight Unit Utility Targeting Computer Device Trap Reconfigurator Processor Targeting Computer Weapon Mining Laser Energy Gun Beam Rifle Ballistic Gun Light Assault Rifle Special Weapon Mining Laser Build | -11 -10 -10 -10 -9 -8 ------- Run | Scr Mat Min Exi Min Mat Slots Evolved 7 | 4 . 1 . . 2 Power 2 | 1 . . . . 1 Propulsion 4 | 2 . 1 . . 1 Utility 1 | 1 . . . . . Weapon . | . . . . . . Parts Attached 24 | 3 9 . 1 3 8 Power 7 | 2 3 . . . 2 Engine 6 | 2 2 . . . 2 Core 1 | . 1 . . . . Reactor . | . . . . . . Propulsion 9 | . 3 . . 3 3 Treads . | . . . . . . Leg . | . . . . . . Wheel . | . . . . . . Hover . | . . . . . . Flight 9 | . 3 . . 3 3 Utility 3 | . 2 . 1 . . Device 1 | . . . 1 . . Storage . | . . . . . . Processor 2 | . 2 . . . . Hackware . | . . . . . . Protection . | . . . . . . Artifact . | . . . . . . Weapon 5 | 1 1 . . . 3 Energy Gun 1 | . . . . . 1 Energy Cannon . | . . . . . . Ballistic Gun 1 | 1 . . . . . Ballistic Cannon . | . . . . . . Launcher . | . . . . . . Special Weapon 3 | . 1 . . . 2 Impact Weapon . | . . . . . . Slashing Weapon . | . . . . . . Piercing Weapon . | . . . . . . Special Melee Weapon . | . . . . . . Unidentified Prototypes . | . . . . . . Parts Lost 7 | . 1 . . 2 4 Power 2 | . 1 . . 1 . Propulsion 4 | . . . . 1 3 Utility . | . . . . . . Weapon 1 | . . . . . 1 Highest Loss Streak 2 | . 1 . . 1 2 Average Slot Usage (%) 83 | . 69 88 88 91 84 Engine 16 | . 22 11 11 11 20 Core 4 | . . 11 11 8 . Flight 29 | . 9 33 33 39 36 Device 5 | . . . 5 11 9 Processor 15 | . 24 22 16 11 9 Ballistic Gun 2 | . 11 . . . . Special Weapon 7 | . . 11 11 11 7 Naked Turns . | . . . . . . Heaviest Build 17 | 11 11 9 10 10 17 Greatest Support 26 | 13 22 22 22 26 26 Greatest Overweight (x) . | . . . . . . Average Overweight (x) . | . . . . . . Largest Inventory Capacity . | . . . . . . Average Capacity . | . . . . . . Most Carried . | . . . . . . Average Carried . | . . . . . . Final Capacity . | . . . . . . Final Carried . | . . . . . . Class Distribution -------------------- 41% | Scavenger-Sprinter 38% | Scavenger-Mutant 20% | Mutant Dominant Class ---------------- Mutant | -10/Materials Scavenger-Mutant | -10/Mines Scavenger-Mutant | -10/Exiles Scavenger-Sprinter | -9/Mines Scavenger-Sprinter | -8/Materials Resources | -11 -10 -10 -10 -9 -8 ----------- Run | Scr Mat Min Exi Min Mat Matter Collected 481 | 210 109 67 . 11 84 Remotely . | . . . . . . Salvage Created 239 | . 109 . . . 130 Parts 57 | . 23 . . 8 26 Haulers Intercepted . | . . . . . . Recyclers Shooed . | . . . . . . Parts Field Recycled . | . . . . . . Retrieved Matter . | . . . . . . Parts Self-Destructed . | . . . . . . Prevented . | . . . . . . Kills | -11 -10 -10 -10 -9 -8 ------- Run | Scr Mat Min Exi Min Mat Combat Hostiles Destroyed 25 | . 10 . . 7 8 Guns 11 | . 10 . . . 1 Cannons 14 | . . . . 7 7 Classes Destroyed 5 | . 2 . . 1 2 Builder 1 | . . . . 1 . Watcher 1 | . . . . . 1 Swarmer 17 | . 5 . . 7 5 Grunt 5 | . 5 . . . . Sentry 3 | . . . . . 3 Best Kill Streak 6 | . 6 . . 3 3 Combat Bots Only 6 | . 6 . . 3 3 Max Kills in Single Turn 1 | . 1 . . 1 1 Gunslinging . | . . . . . . Exploded . | . . . . . . Melee . | . . . . . . Uniques/NPCs Destroyed . | . . . . . . Combat | -11 -10 -10 -10 -9 -8 -------- Run | Scr Mat Min Exi Min Mat Damage Taken 2300 | . 750 324 . 283 943 Core 1883 | . 616 261 . 237 769 Absorbed by Shields . | . . . . . . Redirected to Core 1318 | . 393 227 . 143 555 Core Remaining (%) 68 | 100 . . . 36 . Volleys Fired 144 | . 72 3 . 27 42 Largest 1 | . 1 1 . 1 1 Hottest 100 | . 100 100 . 100 100 Shots Fired 144 | . 72 3 . 27 42 Gun 75 | . 71 . . . 4 Cannon . | . . . . . . Launcher . | . . . . . . Special 69 | . 1 3 . 27 38 Kinetic 71 | . 71 . . . . Thermal 73 | . 1 3 . 27 42 Explosive . | . . . . . . Electromagnetic . | . . . . . . Robot Hit Streak 17 | . 17 . . 2 5 Robot Miss Streak 8 | . 3 2 . 2 8 Penetration Max . | . . . . . . Secondary Targets . | . . . . . . Shots Hit Robots 87 | . 56 . . 14 17 Core Hits 40 | . 21 . . 8 11 Critical Hits 5 | . 2 . . . 3 Critical Kills 3 | . . . . . 3 Critical Parts Destroyed 2 | . 2 . . . . Melee Attacks . | . . . . . . Impact . | . . . . . . Slashing . | . . . . . . Piercing . | . . . . . . Sneak Attacks . | . . . . . . Combat Hostiles . | . . . . . . Follow-up Attacks . | . . . . . . Damage Inflicted 1158 | . 446 . . 384 328 Guns 490 | . 446 . . . 44 Cannons . | . . . . . . Explosions . | . . . . . . Melee . | . . . . . . Ramming . | . . . . . . Kinetic 446 | . 446 . . . . Thermal 712 | . . . . 384 328 Explosive . | . . . . . . Electromagnetic . | . . . . . . Impact . | . . . . . . Slashing . | . . . . . . Piercing . | . . . . . . Highest Corruption . | . . . . . . Average Corruption . | . . . . . . Corruption Purged . | . . . . . . Overload Shots . | . . . . . . Overflow Damage 10 | . . . . 8 2 Projectiles 10 | . . . . 8 2 Explosions . | . . . . . . Melee . | . . . . . . Knockbacks . | . . . . . . Impact . | . . . . . . Kinetic . | . . . . . . Secondary . | . . . . . . Self-Inflicted Damage . | . . . . . . Shots . | . . . . . . Rammed . | . . . . . . Targets Rammed . | . . . . . . Kicked . | . . . . . . Crushed . | . . . . . . Highest Temperature 66 | . 66 . . . . Average Temperature 16 | . 16 . . . . Received Heat Transfer 360 | . 252 . . . 108 Siege Activations . | . . . . . . Robots Corrupted . | . . . . . . Combat Hostiles . | . . . . . . Parts Fried . | . . . . . . Impact Corruptions . | . . . . . . Robots Melted . | . . . . . . Combat Hostiles . | . . . . . . Parts Melted 7 | . . . . . 7 Heat Transferred 1692 | . . . . 800 892 Parts Sabotaged . | . . . . . . Parts Stolen . | . . . . . . Parts Stripped . | . . . . . . Power Chain Reactions . | . . . . . . Missiles Intercepted . | . . . . . . Alert | -11 -10 -10 -10 -9 -8 ------- Run | Scr Mat Min Exi Min Mat Peak Influence 382 | . 279 108 . 200 382 Initial 108 | . . 108 . . 78 Average 153 | . 111 90 . 117 270 Maximum Alert Level 1 | . 1 . . 1 1 Low Security (%) 64 | 100 72 100 . 82 15 Level 1 35 | . 27 . . 17 84 Level 2 . | . . . . . . Level 3 . | . . . . . . Level 4 . | . . . . . . Level 5 . | . . . . . . High Security . | . . . . . . Max Security . | . . . . . . Squads Dispatched 1 | . 1 . . . . Investigation 1 | . 1 . . . . Extermination . | . . . . . . Reinforcement . | . . . . . . Assault . | . . . . . . Garrison . | . . . . . . Intercept . | . . . . . . Construction Impeded . | . . . . . . Haulers Reinforced . | . . . . . . Stealth | -11 -10 -10 -10 -9 -8 --------- Run | Scr Mat Min Exi Min Mat Distress Signals 1 | . . . . . 1 Communications Jammed . | . . . . . . Distress Signals . | . . . . . . Times Spotted 57 | . 14 12 . 9 22 Peak Tracking Total 8 | . 5 8 . 4 6 Tactical Retreats 6 | . 2 2 . 1 1 Traps | -11 -10 -10 -10 -9 -8 ------- Run | Scr Mat Min Exi Min Mat Traps Triggered 1 | . 1 . . . . Indirectly . | . . . . . . Trap Hack Attempts . | . . . . . . Triggered . | . . . . . . Disarmed . | . . . . . . Reprogrammed . | . . . . . . Reused . | . . . . . . Traps Reconfigurated 1 | . . . . . 1 Traps Extracted . | . . . . . . Installed . | . . . . . . Triggered . | . . . . . . Machines | -11 -10 -10 -10 -9 -8 ---------- Run | Scr Mat Min Exi Min Mat Machines Disabled . | . . . . . . Max in Single Turn . | . . . . . . Machines Sabotaged . | . . . . . . Garrisons Compromised . | . . . . . . Overloaded Fab Kills . | . . . . . . Fab Network Shutdowns . | . . . . . . Hacking | -11 -10 -10 -10 -9 -8 --------- Run | Scr Mat Min Exi Min Mat Machines Accessed 3 | . 1 . 1 . 1 Terminals 2 | . 1 . . . 1 Fabricators . | . . . . . . Repair Stations . | . . . . . . Recycling Units . | . . . . . . Scanalyzers . | . . . . . . Garrison Access . | . . . . . . Total Hacks 9 | . 1 . 1 . 7 Successful 6 | . 1 . 1 . 4 Failed 3 | . . . . . 3 Catastrophic 2 | . . . . . 2 Database Lockouts . | . . . . . . Manual 3 | . . . 1 . 2 Terminals 8 | . 1 . . . 7 Fabricators . | . . . . . . Repair Stations . | . . . . . . Recycling Units . | . . . . . . Scanalyzers . | . . . . . . Garrison Access . | . . . . . . Terminal Hacks 6 | . 1 . 1 . 4 Robot Analysis 1 | . 1 . . . . Prototype ID Bank 1 | . . . . . 1 Surveillance Status 1 | . . . . . 1 Patrol Status 1 | . . . . . 1 Hauler Manifests 1 | . . . . . 1 EX-Prototype ID Bank 1 | . . . 1 . . Fabricator Hacks . | . . . . . . Repair Station Hacks . | . . . . . . Recycling Unit Hacks . | . . . . . . Scanalyzer . | . . . . . . Garrison Access Hacks . | . . . . . . Unauthorized Hacks . | . . . . . . Terminals . | . . . . . . Fabricators . | . . . . . . Repair Stations . | . . . . . . Recycling Units . | . . . . . . Scanalyzers . | . . . . . . Garrison Access . | . . . . . . Data Cores Recovered . | . . . . . . Used . | . . . . . . Hacking Detections 2 | . 1 . . . 1 Full Trace Events . | . . . . . . Feedback Events . | . . . . . . Feedback Blocked . | . . . . . . Robot Schematics Acquired . | . . . . . . Robots Built . | . . . . . . Matter . | . . . . . . Time . | . . . . . . Total Robot Build Rating . | . . . . . . Part Schematics Acquired . | . . . . . . Parts Built . | . . . . . . Matter . | . . . . . . Time . | . . . . . . Total Part Build Rating . | . . . . . . Parts Repaired . | . . . . . . Time . | . . . . . . Parts Recycled . | . . . . . . Recycled Matter . | . . . . . . Retrieved Matter . | . . . . . . Retrieved Components . | . . . . . . Parts Scanalyzed . | . . . . . . Part Schematics Acquired . | . . . . . . Parts Damaged . | . . . . . . Bothacking | -11 -10 -10 -10 -9 -8 ------------ Run | Scr Mat Min Exi Min Mat Used RIF Installer . | . . . . . . Robots Hacked . | . . . . . . Non-combat . | . . . . . . Combat . | . . . . . . Robot Hacks Applied . | . . . . . . Relay Couplers Released . | . . . . . . Robots Rewired . | . . . . . . Allies Hacked . | . . . . . . Hacks Repelled . | . . . . . . Allies | -11 -10 -10 -10 -9 -8 -------- Run | Scr Mat Min Exi Min Mat Total Allies 3 | . . 3 . . . Largest Group 3 | . . 3 . . . Highest-Rated Group 40 | . . 40 . . . Highest-Rated Ally 16 | . . 16 . . . Total Orders . | . . . . . . Ally Attacks 3 | . . 3 . . . Total Damage 28 | . . 28 . . . Kills . | . . . . . . Allies Corrupted . | . . . . . . Allies Melted . | . . . . . . Intel | -11 -10 -10 -10 -9 -8 ------- Run | Scr Mat Min Exi Min Mat Robot Analysis Total 1 | . 1 . . . . Derelict Logs Recovered 3 | . . 1 . 2 . Drone Launches . | . . . . . . Drone Recoveries . | . . . . . . Exploration | -11 -10 -10 -10 -9 -8 ------------- Run | Scr Mat Min Exi Min Mat Turns Passed 1236 | 17 308 179 75 332 325 Spaces Moved 1624 | 26 150 486 214 403 345 Core 117 | 26 91 . . . . Treads . | . . . . . . Legs . | . . . . . . Wheels . | . . . . . . Hover . | . . . . . . Flight 1507 | . 59 486 214 403 345 Fastest Speed 31 | 50 34 34 34 31 31 Average Speed 34 | 50 44 34 34 32 31 Slowest Speed 50 | 50 50 34 34 37 34 Overloaded Moves . | . . . . . . Propulsion Burnouts . | . . . . . . Robots Hopped 3 | . . 1 . . 2 Cave-ins Triggered . | . . . . . . Exploration Rate (%) 51 | 3 36 97 62 81 30 Regions Visited 5 Branch Regions 3 Pre-discovered Areas . | . . . . . . Known Exits Taken . | . . . . . . Unknown Exits Taken 5 | 1 1 1 1 1 . Scrap Searched 2 | . . 1 . 1 . Spaces Dug 1 | . . 1 . . . Terrain Destroyed 15 | . 1 2 . 9 3 Melee . | . . . . . . Projectile 15 | . 1 2 . 9 3 AOE . | . . . . . . Terrain Rammed . | . . . . . . Walls Destroyed . | . . . . . . Machines Disabled . | . . . . . . Actions | -11 -10 -10 -10 -9 -8 --------- Run | Scr Mat Min Exi Min Mat Total 2042 | 28 328 489 215 523 459 Wait 214 | . 76 . . 90 48 Move 1613 | 25 149 483 213 402 341 Hop 3 | . . 1 . . 2 Pick Up . | . . . . . . Fast Attach 24 | 3 9 . 1 3 8 Attach . | . . . . . . Detach . | . . . . . . Swap . | . . . . . . Drop 8 | . 3 . 1 1 3 Fire 144 | . 72 3 . 27 42 Melee . | . . . . . . Ram . | . . . . . . Kick . | . . . . . . Crush . | . . . . . . Escape Stasis . | . . . . . . Rewire . | . . . . . . Trap . | . . . . . . Miscellaneous 36 | . 19 2 . . 15 Route ------- -11/Scrapyard -10/Materials -10/Mines (discovered 3 exits: [*Mat x2] / *Exi) -10/Exiles (discovered 2 exits: [*Min x2]) -9/Mines -8/Materials (discovered 1 exit: [*Fac]) History --------- Turn | Location | Event 2 | -11/Scrapyard | Upgraded with Power slot (x1) 2 | -11/Scrapyard | Upgraded with Propulsion slot (x2) 2 | -11/Scrapyard | Upgraded with Utility slot (x1) 6 | -11/Scrapyard | Discovered new exit (range 16) 18 | -11/Scrapyard | Entered Materials 186 | -10/Materials | Discovered new exit (range 15) 225 | -10/Materials | Core integrity fell below 50% 326 | -10/Materials | Entered Mines 327 | -10/Mines | Assembled infested the area 328 | -10/Mines | Reached level 2 328 | -10/Mines | Upgraded with Propulsion slot (x1) 356 | -10/Mines | Core integrity fell below 20% 358 | -10/Mines | Discovered new exit (range 6) 370 | -10/Mines | Assisted by bots powering up and referring to "LRC-V3" 402 | -10/Mines | Learned Materials terminal intel 407 | -10/Mines | Found a hidden stash of uninstalled traps 417 | -10/Mines | Discovered new exit (range 16) 504 | -10/Mines | Discovered new exit (range 5) 505 | -10/Mines | Entered Exiles 511 | -10/Exiles | Discovered new exit (range 15) 515 | -10/Exiles | Met 8R-AWN 520 | -10/Exiles | Met EX-HEX 531 | -10/Exiles | Met EX-BIN 535 | -10/Exiles | Aligned with FarCom system 536 | -10/Exiles | Given EX-Vault access code 544 | -10/Exiles | Opened EX-Vault 546 | -10/Exiles | Found Trap Reconfigurator 554 | -10/Exiles | Warned to stay clear of 0b10 Research branches 564 | -10/Exiles | Met EX-DEC 567 | -10/Exiles | Build established: Scavenger-Mutant 576 | -10/Exiles | Discovered new exit (range 12) 580 | -10/Exiles | Left Exiles lab with Trap Reconfigurator 580 | -10/Exiles | Entered Mines 582 | -9/Mines | Reached level 3 807 | -9/Mines | Discovered new exit (range 8) 873 | -9/Mines | A weapon hastily lodged in a ceiling crevice suddenly fell to the ground 912 | -9/Mines | Entered Materials 913 | -8/Materials | Loaded intel: 12 terminal locations 913 | -8/Materials | Core integrity fell below 50% 914 | -8/Materials | Reached level 4 914 | -8/Materials | Upgraded with Power slot (x1) 952 | -8/Materials | Reached level 5 959 | -8/Materials | Core integrity fell below 20% 1002 | -8/Materials | Build established: Scavenger-Sprinter 1047 | -8/Materials | Upgraded with Propulsion slot (x1) 1083 | -8/Materials | Discovered new exit (range 8) 1237 | -8/Materials | Destroyed by G-47 Trooper with Particle Gun Last Messages --------------- 01108_ R-06 Scavenger collects Lgt. Treads. 01111_ R-06 Scavenger collects Heat Sink. 01112_ Acquired 10 matter. 01183_ S-10 Pest destroyed. 01191_ U-05 Engineer lays Concrete. 01192_ R-06 Scavenger collects Lgt. Ion Engine. 01193_ U-05 Engineer builds a Wall. 01196_ U-05 Engineer lays Concrete. 01198_ S-10 Pest destroyed. 01198_ U-05 Engineer lays Concrete. 01204_ K-01 Serf collects debris. 01206_ U-05 Engineer lays Concrete. 01208_ K-01 Serf collects debris. 01212_ U-05 Engineer builds a Wall. 01215_ K-01 Serf collects debris. 01217_ U-05 Engineer lays Concrete. 01228_ Flight Unit destroyed. 01228_ U-05 Engineer lays Concrete. 01235_ K-01 Serf destroyed. 01236_ K-01 Serf collects debris. Map ----- +----------------------------------------------------+ | ???????????????????????????????????????# =/ [! | | ???????????????????????????????????????## | ![ =%[ | | ????????????????????????????????????????#""= [""" | | ????????????????????????????????????????#"Y=[=""" | | ????????????????????????????????????????#"" """ | | ????????????????????????????????????????# != | | ????????????????????????????????????????######+### | | ???????????????????????###########??????????## ### | | ???????????????????????# #??######### | | ???????????????????##### #??# + | | ????##+#???????????# # """ #??# ## #### | | ????# ???????????# # """ #??# ## #??# | | ????# ??????????"# # """ "" #??# ## #??? | | ????# #?????????T# + """ #??# ## #??? | | ????# #?????????"# # S" #??# ## #??? | | ????# #??????????# # = #??# ##+###? | | ????# #?????????## ###########??# # | | ????# ########### ############# # | | ????# w ## # # | | ????# ## + # [[! | | ????# ## w # # [!! | | ##### ########### ## ######## # [! ? | | #?????????######## #??????############## | | #????????????????# u #?????####### | | ##### ################## ####### # """ | | ????# g =@% # """ | | ????# g sk* k # """ | | ????# g %[* # ! | | ????################################ # """ | | ???????????????????????####?????????# ## """ | | ????????????????????????????????????# ## """ | | ????????????????????????#######?????# ##= | | ????????????????????????# ####### #####?#### | | ????????????????????????# #????????? | | ????????????????????????# T #????????? | | ????????????????????????# #????????? | | ????????????????????????# ####### #????????? | | ???????????????????????####+######??# #????????? | | ???????????????????????# #??# #????????? | | ???????????????????????# #??# ########## | | ???????????????????????# #### | | ???????????????????????# + | | ???????????????????????# #### = | | ???????????????????????# #####+######## | | ???????????????????????# # #???# | | ???????????????????????# # ]#???###+ | | ???????????????????????########### """ #???# | | ?????????????????????????????????# """ =#???# | | ?????????????????????????????????# """ #???# | | ?????????????????????????????????# """ #???# | +----------------------------------------------------+ Best States ------------- Heat Dissipation 85 Energy Generation 27 Energy Capacity 400 Matter Stores 300 Matter Capacity 300 Sight Range 16 Terrain Scan Density 10 Resistance: TH 5 Evasion (%) 63 Targeting Accuracy 10 Item Schematics ----------------- None Robot Schematics ------------------ None Fabricated ------------ Nothing Alien Tech Used ----------------- None Achievements -------------- None Challenges ------------ None RPGLIKE | -11 -10 -10 -10 -9 -8 --------- Run | Scr Mat Min Exi Min Mat Levels Raised 4 | . . 1 . 1 2 XP Earned 10005 | 3000 1425 800 350 1525 2905 XP Spent 8975 | 3000 . 1420 . 1575 2980 Upgrades 32 | 6 . 5 . 15 6 Power Slot 2 | 1 . . . . 1 Propulsion Slot 4 | 2 . 1 . . 1 Utility Slot 1 | 1 . . . . . Core Integrity 11 | . . . . 11 . Heat Dissipation 10 | . . 4 . 3 3 Energy Generation 1 | . . . . 1 . Mass Support 2 | 2 . . . . . TH Resistance % 1 | . . . . . 1 Protomatter Created 306 | . 194 . . . 112 Integrity Restored 744 | . 360 48 . . 336 Core 721 | . 337 48 . . 336 Parts 23 | . 23 . . . . Protomatter Decayed 155 | . 72 83 . . . Game ------ Seed LobotomyCombatManipulator Manual? 0 Play Time 00:31:45 Cumulative 105.0 hours Start 2021.11.18 @ 21:51:32 End 2021.11.18 @ 22:22:08 Sessions 1 Manual Loads 0 Difficulty Rogue Special Mode Winter2019/RPGLIKE Game No. 32 Rogue 2 Adventurer 0 Explorer 30 Win Type - Total 4 Types 0/1/0/2/0/0/0/0/1 Lore% 51 Gallery% 44 Achievement% 48 Wizard Run 0 Options --------- ASCII 0 Keyboard 0 Movement Mouse Keybinds 0 Fullscreen 2 Font 18/SmallcapsGlow Map View 76x50 Tactical HUD 1 Map Filters NONE Filters NONE Steam 1 RUN: 666b018a-93d0-40fb-8acf-755f87233093